[Event "Late-Titled-Tuesday-Blitz-March-19-2024"]
[Site "Chess.com"]
[Date "2024.03.19"]
[Round "8"]
[White "Bilan_Danila"]
[Black "MikaelyanArman"]
[Result "0-1"]
[WhiteElo "2652"]
[BlackElo "2852"]
[TimeControl "180+1"]
[EndTime "15:29:34 PDT"]
[Termination "MikaelyanArman won by resignation"]

1. d4 {[%clk 0:03:00.9]} 1... Nf6 {[%clk 0:02:59.7]} 2. Nf3 {[%clk 0:03:01.3]}
2... g6 {[%clk 0:02:59.5]} 3. Bg5 {[%clk 0:03:00.8]} 3... Bg7 {[%clk 0:02:59.2]}
4. Nbd2 {[%clk 0:03:01.2]} 4... d5 {[%clk 0:02:57.8]} 5. e3 {[%clk 0:03:01.1]}
5... O-O {[%clk 0:02:58.1]} 6. Bd3 {[%clk 0:02:58.9]} 6... Nbd7 {[%clk
0:02:58.2]} 7. c3 {[%clk 0:02:58.2]} 7... c5 {[%clk 0:02:55.5]} 8. O-O {[%clk
0:02:58.4]} 8... b6 {[%clk 0:02:53.5]} 9. Qe2 {[%clk 0:02:58.6]} 9... Bb7 {[%clk
0:02:53.5]} 10. e4 {[%clk 0:02:35.3]} 10... cxd4 {[%clk 0:02:50.2]} 11. Nxd4
{[%clk 0:02:34.1]} 11... Nc5 {[%clk 0:02:29.5]} 12. e5 {[%clk 0:02:07.1]} 12...
Nxd3 {[%clk 0:02:28.9]} 13. exf6 {[%clk 0:01:43]} 13... exf6 {[%clk 0:02:29.8]}
14. Bxf6 {[%clk 0:01:43]} 14... Nf4 {[%clk 0:02:20.8]} 15. Bxd8 {[%clk
0:01:42.5]} 15... Nxe2+ {[%clk 0:02:21.1]} 16. Nxe2 {[%clk 0:01:43.1]} 16...
Raxd8 {[%clk 0:02:21.7]} 17. Nf3 {[%clk 0:01:41.2]} 17... Rfe8 {[%clk
0:02:13.7]} 18. Ned4 {[%clk 0:01:41.1]} 18... h6 {[%clk 0:02:07.5]} 19. Rfe1
{[%clk 0:01:39.5]} 19... Re4 {[%clk 0:02:01.2]} 20. g3 {[%clk 0:01:18.5]} 20...
Rde8 {[%clk 0:01:56.1]} 21. Kg2 {[%clk 0:01:05.8]} 21... g5 {[%clk 0:01:55.9]}
22. h3 {[%clk 0:01:04.5]} 22... Kh7 {[%clk 0:01:47.2]} 23. g4 {[%clk 0:01:00.9]}
23... Kg6 {[%clk 0:01:43.7]} 24. Kg3 {[%clk 0:00:55.3]} 24... Bc8 {[%clk
0:01:40.2]} 25. Rad1 {[%clk 0:00:49.3]} 25... h5 {[%clk 0:01:33]} 26. gxh5+
{[%clk 0:00:43.8]} 26... Kxh5 {[%clk 0:01:33.9]} 27. Nc2 {[%clk 0:00:41.3]}
27... Rxe1 {[%clk 0:01:07]} 28. Ncxe1 {[%clk 0:00:38.3]} 28... Be6 {[%clk
0:00:40.6]} 29. Nc2 {[%clk 0:00:38.4]} 29... f5 {[%clk 0:00:40]} 30. Nb4 {[%clk
0:00:35]} 30... f4+ {[%clk 0:00:32.3]} 31. Kg2 {[%clk 0:00:35.1]} 31... Rd8
{[%clk 0:00:19.6]} 32. Nc6 {[%clk 0:00:34.8]} 32... Rd6 {[%clk 0:00:18.4]} 33.
Ncd4 {[%clk 0:00:33]} 33... Bd7 {[%clk 0:00:18.9]} 34. Re1 {[%clk 0:00:32.4]}
34... Kg6 {[%clk 0:00:17.5]} 35. Ne5+ {[%clk 0:00:31.7]} 35... Bxe5 {[%clk
0:00:15.1]} 36. Rxe5 {[%clk 0:00:32.6]} 36... Kf6 {[%clk 0:00:16]} 37. Re1
{[%clk 0:00:31]} 37... b5 {[%clk 0:00:13]} 38. b4 {[%clk 0:00:27.7]} 38... Ra6
{[%clk 0:00:12.5]} 39. Re2 {[%clk 0:00:26.6]} 39... Ra3 {[%clk 0:00:12.5]} 40.
Rc2 {[%clk 0:00:26.9]} 40... a5 {[%clk 0:00:09.6]} 41. bxa5 {[%clk 0:00:26.3]}
41... Rxa5 {[%clk 0:00:10.5]} 42. f3 {[%clk 0:00:22.3]} 42... Ra3 {[%clk
0:00:07.9]} 43. Nb3 {[%clk 0:00:21]} 43... Ke5 {[%clk 0:00:05.7]} 44. Re2+
{[%clk 0:00:19.6]} 44... Kd6 {[%clk 0:00:06.2]} 45. Rd2 {[%clk 0:00:19]} 45...
Bf5 {[%clk 0:00:06.1]} 46. Nd4 {[%clk 0:00:18.4]} 46... Bd7 {[%clk 0:00:06.8]}
47. Nb3 {[%clk 0:00:18.8]} 47... Ra8 {[%clk 0:00:06]} 48. Rd1 {[%clk 0:00:18.2]}
48... Rc8 {[%clk 0:00:06.2]} 49. Rc1 {[%clk 0:00:18.8]} 49... Re8 {[%clk
0:00:04.7]} 50. Rc2 {[%clk 0:00:18.7]} 50... Re3 {[%clk 0:00:04.7]} 51. Nd4
{[%clk 0:00:17.1]} 51... Rd3 {[%clk 0:00:05]} 52. Rb2 {[%clk 0:00:16.3]} 52...
Rxc3 {[%clk 0:00:04.8]} 53. Rxb5 {[%clk 0:00:15.3]} 53... Rd3 {[%clk 0:00:05.1]}
54. Rb4 {[%clk 0:00:15.3]} 54... Rd2+ {[%clk 0:00:05.6]} 55. Kf1 {[%clk
0:00:15.3]} 55... Rxa2 {[%clk 0:00:06.2]} 56. Ne2 {[%clk 0:00:16.1]} 56... Bf5
{[%clk 0:00:05.3]} 57. Rd4 {[%clk 0:00:15.7]} 57... Ke5 {[%clk 0:00:05.1]} 58.
Rd1 {[%clk 0:00:15.3]} 58... Bc2 {[%clk 0:00:05.5]} 59. Rd2 {[%clk 0:00:15.1]}
59... Ra1+ {[%clk 0:00:05.8]} 60. Kg2 {[%clk 0:00:14.8]} 60... Bf5 {[%clk
0:00:06.1]} 61. Nd4 {[%clk 0:00:14.8]} 61... Bg6 {[%clk 0:00:04.4]} 62. Nc6+
{[%clk 0:00:14.7]} 62... Kd6 {[%clk 0:00:05]} 63. Nb4 {[%clk 0:00:15]} 63... Bf7
{[%clk 0:00:05.6]} 64. Nc2 {[%clk 0:00:14.7]} 64... Ra2 {[%clk 0:00:05.5]} 65.
Kf2 {[%clk 0:00:11.8]} 65... Bg6 {[%clk 0:00:05.5]} 66. Rxd5+ {[%clk 0:00:11]}
66... Ke6 {[%clk 0:00:06.2]} 67. Rxg5 {[%clk 0:00:10.2]} 67... Rxc2+ {[%clk
0:00:06.7]} 68. Kg1 {[%clk 0:00:10.5]} 68... Bf5 {[%clk 0:00:07.3]} 69. h4
{[%clk 0:00:09.6]} 69... Kf6 {[%clk 0:00:07.6]} 70. Rg8 {[%clk 0:00:08.2]} 70...
Bg6 {[%clk 0:00:04.8]} 71. Rf8+ {[%clk 0:00:06.5]} 71... Ke5 {[%clk 0:00:04.4]}
72. Rg8 {[%clk 0:00:03.6]} 72... Bf5 {[%clk 0:00:03.7]} 73. h5 {[%clk
0:00:03.6]} 73... Rc1+ {[%clk 0:00:04.4]} 74. Kf2 {[%clk 0:00:03.5]} 74... Rc2+
{[%clk 0:00:05]} 75. Kg1 {[%clk 0:00:04]} 75... Rc6 {[%clk 0:00:05.6]} 76. Kf2
{[%clk 0:00:03.6]} 76... Rh6 {[%clk 0:00:05.8]} 77. Ra8 {[%clk 0:00:03.9]} 77...
Rxh5 {[%clk 0:00:05.8]} 78. Ra5+ {[%clk 0:00:04.8]} 78... Kf6 {[%clk 0:00:06.2]}
79. Ra6+ {[%clk 0:00:05.4]} 79... Kg5 {[%clk 0:00:06.7]} 80. Ra5 {[%clk
0:00:05.7]} 80... Rh2+ {[%clk 0:00:06.9]} 81. Kg1 {[%clk 0:00:06.5]} 81... Rb2
{[%clk 0:00:07.6]} 82. Re5 {[%clk 0:00:06.9]} 82... Kf6 {[%clk 0:00:07.3]} 83.
Ra5 {[%clk 0:00:07.5]} 83... Bd3 {[%clk 0:00:07.3]} 84. Rh5 {[%clk 0:00:07.7]}
84... Re2 {[%clk 0:00:07]} 85. Rh6+ {[%clk 0:00:07.2]} 85... Kg5 {[%clk
0:00:07]} 86. Rh8 {[%clk 0:00:07.5]} 86... Rb2 {[%clk 0:00:06.2]} 87. Rg8+
{[%clk 0:00:08]} 87... Kf5 {[%clk 0:00:05]} 88. Rf8+ {[%clk 0:00:08.4]} 88...
Ke5 {[%clk 0:00:05.6]} 89. Re8+ {[%clk 0:00:08.6]} 89... Kd4 {[%clk 0:00:06.1]}
90. Re1 {[%clk 0:00:08.4]} 90... Be2 {[%clk 0:00:05.1]} 91. Kf2 {[%clk
0:00:08.3]} 91... Bd3+ {[%clk 0:00:05.6]} 92. Kg1 {[%clk 0:00:08.7]} 92... Rb1
{[%clk 0:00:06.3]} 93. Rxb1 {[%clk 0:00:08.6]} 93... Bxb1 {[%clk 0:00:07.2]} 0-1

[Event "Late-Titled-Tuesday-Blitz-March-19-2024"]
[Site "Chess.com"]
[Date "2024.03.19"]
[Round "9"]
[White "Masterisback04"]
[Black "Tugrik1969"]
[Result "1-0"]
[WhiteElo "1968"]
[BlackElo "2380"]
[TimeControl "180+1"]
[EndTime "15:38:05 PDT"]
[Termination "Masterisback04 won by checkmate"]

1. e4 {[%clk 0:03:00.9]} 1... c5 {[%clk 0:02:59.4]} 2. Nf3 {[%clk 0:02:58.1]}
2... d6 {[%clk 0:02:59.8]} 3. d4 {[%clk 0:02:57.7]} 3... cxd4 {[%clk 0:03:00.7]}
4. Qxd4 {[%clk 0:02:57.6]} 4... Nc6 {[%clk 0:02:59]} 5. Bb5 {[%clk 0:02:58.2]}
5... Bd7 {[%clk 0:02:59.2]} 6. Bxc6 {[%clk 0:02:57.4]} 6... Bxc6 {[%clk
0:02:59.9]} 7. Nc3 {[%clk 0:02:58]} 7... h6 {[%clk 0:02:59.7]} 8. O-O {[%clk
0:02:53.5]} 8... e5 {[%clk 0:03:00.1]} 9. Qc4 {[%clk 0:02:46.2]} 9... Nf6 {[%clk
0:02:59.1]} 10. Rd1 {[%clk 0:02:44]} 10... Qa5 {[%clk 0:02:32.4]} 11. b4 {[%clk
0:02:38]} 11... Qd8 {[%clk 0:02:07.6]} 12. Nxe5 {[%clk 0:02:35.1]} 12... Rc8
{[%clk 0:02:08.1]} 13. Qxf7# {[%clk 0:02:30.6]} 1-0

[Event "Late-Titled-Tuesday-Blitz-March-19-2024"]
[Site "Chess.com"]
[Date "2024.03.19"]
[Round "9"]
[White "szachmistrz2500"]
[Black "cristiano78"]
[Result "1-0"]
[WhiteElo "2448"]
[BlackElo "2247"]
[TimeControl "180+1"]
[EndTime "15:38:13 PDT"]
[Termination "szachmistrz2500 won by checkmate"]

1. d4 {[%clk 0:02:54.6]} 1... Nf6 {[%clk 0:02:59.6]} 2. Nc3 {[%clk 0:02:52.7]}
2... g6 {[%clk 0:03:00]} 3. e4 {[%clk 0:02:52.3]} 3... d6 {[%clk 0:03:00.5]} 4.
Be3 {[%clk 0:02:51.3]} 4... Bg7 {[%clk 0:03:01.4]} 5. f3 {[%clk 0:02:51.6]} 5...
O-O {[%clk 0:03:01.4]} 6. g4 {[%clk 0:02:50.8]} 6... c6 {[%clk 0:03:01.7]} 7.
Qd2 {[%clk 0:02:50.2]} 7... h5 {[%clk 0:03:00.8]} 8. gxh5 {[%clk 0:02:46.4]}
8... Nxh5 {[%clk 0:03:00.7]} 9. O-O-O {[%clk 0:02:45.9]} 9... b5 {[%clk
0:02:58.8]} 10. Nce2 {[%clk 0:02:45.5]} 10... a5 {[%clk 0:02:57.5]} 11. Ng3
{[%clk 0:02:45.5]} 11... Nf6 {[%clk 0:02:54.1]} 12. h4 {[%clk 0:02:45.5]} 12...
e5 {[%clk 0:02:53.1]} 13. h5 {[%clk 0:02:43]} 13... exd4 {[%clk 0:02:52.7]} 14.
Bxd4 {[%clk 0:02:42.7]} 14... Qe7 {[%clk 0:02:50]} 15. Bh3 {[%clk 0:02:19.7]}
15... Nxh5 {[%clk 0:02:41.3]} 16. Nxh5 {[%clk 0:02:17.9]} 16... gxh5 {[%clk
0:02:41.3]} 17. Ne2 {[%clk 0:02:12.6]} 17... Kh7 {[%clk 0:02:38.6]} 18. Bxg7
{[%clk 0:02:11.7]} 18... Kxg7 {[%clk 0:02:38.7]} 19. Rdg1+ {[%clk 0:02:11.9]}
19... Kh7 {[%clk 0:02:39]} 20. Bf5+ {[%clk 0:02:10.2]} 20... Bxf5 {[%clk
0:02:36.8]} 21. Rxh5# {[%clk 0:02:10.1]} 1-0

[Event "Late-Titled-Tuesday-Blitz-March-19-2024"]
[Site "Chess.com"]
[Date "2024.03.19"]
[Round "9"]
[White "vova-79"]
[Black "PNEPaul"]
[Result "1-0"]
[WhiteElo "2511"]
[BlackElo "1978"]
[TimeControl "180+1"]
[EndTime "15:39:21 PDT"]
[Termination "vova-79 won by resignation"]

1. d4 {[%clk 0:02:57.1]} 1... a6 {[%clk 0:02:59.2]} 2. c3 {[%clk 0:02:54]} 2...
d6 {[%clk 0:02:59.2]} 3. g3 {[%clk 0:02:52.2]} 3... g6 {[%clk 0:02:59.2]} 4. Bg2
{[%clk 0:02:52.5]} 4... h6 {[%clk 0:02:59.4]} 5. e4 {[%clk 0:02:52.9]} 5... Bg7
{[%clk 0:02:59.4]} 6. Ne2 {[%clk 0:02:53.4]} 6... Nd7 {[%clk 0:02:59.6]} 7. O-O
{[%clk 0:02:54.2]} 7... e6 {[%clk 0:02:59.8]} 8. a4 {[%clk 0:02:52.2]} 8... Ne7
{[%clk 0:03:00.1]} 9. a5 {[%clk 0:02:52.5]} 9... O-O {[%clk 0:03:00.1]} 10. Na3
{[%clk 0:02:52.4]} 10... Kh7 {[%clk 0:02:59]} 11. Qc2 {[%clk 0:02:48.7]} 11...
f5 {[%clk 0:02:58.6]} 12. Nf4 {[%clk 0:02:46.4]} 12... Nf6 {[%clk 0:02:54.8]}
13. exf5 {[%clk 0:02:40.6]} 13... exf5 {[%clk 0:02:53.5]} 14. Re1 {[%clk
0:02:39.6]} 14... c6 {[%clk 0:02:52.3]} 15. Nc4 {[%clk 0:02:36.1]} 15... Ned5
{[%clk 0:02:46.9]} 16. Nxd5 {[%clk 0:02:28.3]} 16... Nxd5 {[%clk 0:02:45.8]} 17.
Bxd5 {[%clk 0:02:27.5]} 17... cxd5 {[%clk 0:02:45.5]} 18. Nb6 {[%clk 0:02:28.2]}
18... Rb8 {[%clk 0:02:43.3]} 19. Nxd5 {[%clk 0:02:27.5]} 19... Bd7 {[%clk
0:02:33.8]} 20. Bf4 {[%clk 0:02:17.5]} 20... Bc6 {[%clk 0:02:33.1]} 21. Nb6
{[%clk 0:02:18.1]} 21... Be4 {[%clk 0:02:29.2]} 22. Qe2 {[%clk 0:02:11.4]} 22...
Re8 {[%clk 0:02:26.8]} 23. f3 {[%clk 0:02:11]} 23... Bc6 {[%clk 0:02:25.5]} 24.
Qf2 {[%clk 0:02:10.7]} 24... Qf6 {[%clk 0:02:17.8]} 25. d5 {[%clk 0:02:08]}
25... g5 {[%clk 0:02:11.8]} 26. dxc6 {[%clk 0:02:04.9]} 26... gxf4 {[%clk
0:02:09.3]} 27. c7 {[%clk 0:02:05]} 27... Rbc8 {[%clk 0:02:07.9]} 28. Rxe8
{[%clk 0:01:55.7]} 28... Rxe8 {[%clk 0:02:06.3]} 29. Re1 {[%clk 0:01:51.3]} 1-0

[Event "Late-Titled-Tuesday-Blitz-March-19-2024"]
[Site "Chess.com"]
[Date "2024.03.19"]
[Round "9"]
[White "xasid81"]
[Black "Godzillator"]
[Result "1-0"]
[WhiteElo "2595"]
[BlackElo "2402"]
[TimeControl "180+1"]
[EndTime "15:39:48 PDT"]
[Termination "xasid81 won by resignation"]

1. a3 {[%clk 0:03:00.9]} 1... d5 {[%clk 0:02:58.1]} 2. e3 {[%clk 0:03:00.3]}
2... Nf6 {[%clk 0:02:57.6]} 3. c4 {[%clk 0:03:00.8]} 3... c6 {[%clk 0:02:56.2]}
4. Nf3 {[%clk 0:03:00.9]} 4... Bg4 {[%clk 0:02:54.5]} 5. cxd5 {[%clk 0:02:59.7]}
5... cxd5 {[%clk 0:02:54.7]} 6. Bb5+ {[%clk 0:02:59.5]} 6... Nc6 {[%clk
0:02:54.8]} 7. Qa4 {[%clk 0:02:59.1]} 7... Bd7 {[%clk 0:02:53.1]} 8. d4 {[%clk
0:02:57.2]} 8... a6 {[%clk 0:02:53.3]} 9. Bxc6 {[%clk 0:02:57.2]} 9... Bxc6
{[%clk 0:02:53.8]} 10. Qc2 {[%clk 0:02:56.4]} 10... Rc8 {[%clk 0:02:52.8]} 11.
Nc3 {[%clk 0:02:56.6]} 11... e6 {[%clk 0:02:43.6]} 12. Ne5 {[%clk 0:02:54.1]}
12... Bb5 {[%clk 0:02:42.1]} 13. Qb3 {[%clk 0:02:47.9]} 13... Qa5 {[%clk
0:02:34.5]} 14. Bd2 {[%clk 0:02:44]} 14... Bc4 {[%clk 0:02:03.4]} 15. Nxc4
{[%clk 0:02:12.4]} 15... Rxc4 {[%clk 0:01:53.4]} 16. Qxb7 {[%clk 0:02:11.5]}
16... Be7 {[%clk 0:01:51.3]} 17. O-O {[%clk 0:01:53.2]} 17... Rc7 {[%clk
0:01:50.4]} 18. Qb8+ {[%clk 0:01:45.2]} 18... Bd8 {[%clk 0:01:49.1]} 19. b4
{[%clk 0:01:36.8]} 1-0

[Event "Late-Titled-Tuesday-Blitz-March-19-2024"]
[Site "Chess.com"]
[Date "2024.03.19"]
[Round "9"]
[White "jodarmarlon1985"]
[Black "ploxoi"]
[Result "1-0"]
[WhiteElo "2301"]
[BlackElo "2401"]
[TimeControl "180+1"]
[EndTime "15:40:04 PDT"]
[Termination "jodarmarlon1985 won by resignation"]

1. e4 {[%clk 0:02:53.6]} 1... c6 {[%clk 0:02:58.7]} 2. Nf3 {[%clk 0:02:52.3]}
2... d5 {[%clk 0:02:57.8]} 3. exd5 {[%clk 0:02:53.2]} 3... cxd5 {[%clk
0:02:57.5]} 4. Ne5 {[%clk 0:02:53.8]} 4... Nc6 {[%clk 0:02:57.8]} 5. d4 {[%clk
0:02:53.7]} 5... Nf6 {[%clk 0:02:55.3]} 6. c3 {[%clk 0:02:51.7]} 6... Qc7 {[%clk
0:02:54.4]} 7. Bf4 {[%clk 0:02:47]} 7... Qb6 {[%clk 0:02:54]} 8. b3 {[%clk
0:02:15.9]} 8... Bf5 {[%clk 0:02:52.9]} 9. Bd3 {[%clk 0:02:10.3]} 9... Bxd3
{[%clk 0:02:52.2]} 10. Qxd3 {[%clk 0:02:11.2]} 10... e6 {[%clk 0:02:52.1]} 11.
Nd2 {[%clk 0:02:09.6]} 11... Rc8 {[%clk 0:02:47.5]} 12. O-O {[%clk 0:02:08.8]}
12... Be7 {[%clk 0:02:44.6]} 13. Rfe1 {[%clk 0:02:04.2]} 13... O-O {[%clk
0:02:44.3]} 14. Re3 {[%clk 0:02:04.1]} 14... a5 {[%clk 0:02:21.4]} 15. Rh3
{[%clk 0:02:01.6]} 15... g6 {[%clk 0:02:18]} 16. Re1 {[%clk 0:01:51.8]} 16...
Nxe5 {[%clk 0:02:04.9]} 17. Bxe5 {[%clk 0:01:15.9]} 17... Nd7 {[%clk 0:02:04.3]}
18. Qe3 {[%clk 0:01:13.8]} 18... Nxe5 {[%clk 0:01:54]} 19. Qh6 {[%clk
0:01:13.1]} 1-0

[Event "Late-Titled-Tuesday-Blitz-March-19-2024"]
[Site "Chess.com"]
[Date "2024.03.19"]
[Round "9"]
[White "Vahe_Danielyan"]
[Black "gympod"]
[Result "1-0"]
[WhiteElo "2667"]
[BlackElo "2419"]
[TimeControl "180+1"]
[EndTime "15:40:10 PDT"]
[Termination "Vahe_Danielyan won by resignation"]

1. d4 {[%clk 0:03:00.9]} 1... Nf6 {[%clk 0:02:58.4]} 2. c4 {[%clk 0:03:00.4]}
2... e6 {[%clk 0:02:59]} 3. Nf3 {[%clk 0:02:59]} 3... Bb4+ {[%clk 0:02:59.6]} 4.
Nbd2 {[%clk 0:02:58]} 4... O-O {[%clk 0:02:59]} 5. e3 {[%clk 0:02:56.9]} 5... b6
{[%clk 0:02:57.8]} 6. Bd3 {[%clk 0:02:56.8]} 6... Bb7 {[%clk 0:02:57.9]} 7. O-O
{[%clk 0:02:56.5]} 7... d5 {[%clk 0:02:58.3]} 8. cxd5 {[%clk 0:02:56.1]} 8...
exd5 {[%clk 0:02:58.3]} 9. a3 {[%clk 0:02:54.9]} 9... Bd6 {[%clk 0:02:58.3]} 10.
b4 {[%clk 0:02:54.1]} 10... Nbd7 {[%clk 0:02:57.5]} 11. Bb2 {[%clk 0:02:51.9]}
11... Qe7 {[%clk 0:02:44.4]} 12. Rc1 {[%clk 0:02:49]} 12... Ne4 {[%clk
0:02:40.3]} 13. Qc2 {[%clk 0:02:36.8]} 13... f5 {[%clk 0:02:38.5]} 14. Bb5
{[%clk 0:02:30.7]} 14... Ndf6 {[%clk 0:01:53.5]} 15. Bc6 {[%clk 0:02:29.8]}
15... Bxc6 {[%clk 0:01:51]} 16. Qxc6 {[%clk 0:02:30.7]} 16... Rad8 {[%clk
0:01:44.7]} 17. Nxe4 {[%clk 0:02:26.1]} 17... fxe4 {[%clk 0:01:37.6]} 18. Ne5
{[%clk 0:02:27]} 18... Kh8 {[%clk 0:01:13.6]} 19. f4 {[%clk 0:02:22.6]} 19...
exf3 {[%clk 0:01:13.3]} 20. Rxf3 {[%clk 0:02:23.1]} 20... Bxe5 {[%clk 0:01:07]}
21. dxe5 {[%clk 0:02:24]} 21... Ng4 {[%clk 0:01:02.4]} 22. Qxc7 {[%clk
0:02:24.3]} 22... Qh4 {[%clk 0:00:59.9]} 23. e6 {[%clk 0:02:14.9]} 1-0

[Event "Late-Titled-Tuesday-Blitz-March-19-2024"]
[Site "Chess.com"]
[Date "2024.03.19"]
[Round "9"]
[White "TregubovP"]
[Black "joksijoksi"]
[Result "1-0"]
[WhiteElo "2693"]
[BlackElo "2580"]
[TimeControl "180+1"]
[EndTime "15:40:13 PDT"]
[Termination "TregubovP won by resignation"]

1. e4 {[%clk 0:03:00.9]} 1... c5 {[%clk 0:02:59.3]} 2. Nf3 {[%clk 0:02:59.9]}
2... e6 {[%clk 0:02:56.9]} 3. c3 {[%clk 0:02:59.7]} 3... Nf6 {[%clk 0:02:54.6]}
4. e5 {[%clk 0:02:59.8]} 4... Nd5 {[%clk 0:02:54.3]} 5. d4 {[%clk 0:03:00.5]}
5... cxd4 {[%clk 0:02:54.1]} 6. cxd4 {[%clk 0:03:01.1]} 6... d6 {[%clk
0:02:54.2]} 7. Bc4 {[%clk 0:03:01]} 7... Be7 {[%clk 0:02:52.9]} 8. O-O {[%clk
0:03:00.9]} 8... O-O {[%clk 0:02:52.7]} 9. Qe2 {[%clk 0:03:01.5]} 9... b6 {[%clk
0:02:52.7]} 10. Bxd5 {[%clk 0:02:49.3]} 10... exd5 {[%clk 0:02:53.6]} 11. Nc3
{[%clk 0:02:49.2]} 11... dxe5 {[%clk 0:02:53]} 12. Nxe5 {[%clk 0:02:47.8]} 12...
Bb7 {[%clk 0:02:52.8]} 13. Re1 {[%clk 0:02:42.1]} 13... Bd6 {[%clk 0:02:49.6]}
14. Qf3 {[%clk 0:02:33.9]} 14... f6 {[%clk 0:02:37.6]} 15. Nc4 {[%clk
0:02:22.8]} 15... Bb4 {[%clk 0:02:27.5]} 16. Ne3 {[%clk 0:02:12.2]} 16... Bxc3
{[%clk 0:02:26.4]} 17. bxc3 {[%clk 0:02:12]} 17... Re8 {[%clk 0:02:24.7]} 18.
Ba3 {[%clk 0:02:07.1]} 18... Na6 {[%clk 0:02:23.2]} 19. Nf5 {[%clk 0:02:05.3]}
19... Qc7 {[%clk 0:02:10.4]} 20. Nd6 {[%clk 0:01:38.9]} 20... Rxe1+ {[%clk
0:02:08.2]} 21. Rxe1 {[%clk 0:01:38.1]} 21... Rd8 {[%clk 0:02:07.9]} 22. Qe3
{[%clk 0:01:04.4]} 22... Bc6 {[%clk 0:02:01.8]} 23. Qe6+ {[%clk 0:01:03.3]}
23... Kh8 {[%clk 0:01:58.2]} 24. Nf7+ {[%clk 0:01:02.5]} 24... Kg8 {[%clk
0:01:51.8]} 1-0

[Event "Late-Titled-Tuesday-Blitz-March-19-2024"]
[Site "Chess.com"]
[Date "2024.03.19"]
[Round "9"]
[White "SpeedofLight0"]
[Black "Zohid6"]
[Result "1-0"]
[WhiteElo "3065"]
[BlackElo "2885"]
[TimeControl "180+1"]
[EndTime "15:40:57 PDT"]
[Termination "SpeedofLight0 won by resignation"]

1. d4 {[%clk 0:03:00.9]} 1... d5 {[%clk 0:02:59.6]} 2. Nc3 {[%clk 0:03:01]} 2...
Nf6 {[%clk 0:02:58.3]} 3. Bf4 {[%clk 0:03:01.6]} 3... e6 {[%clk 0:02:52.8]} 4.
e3 {[%clk 0:03:01.8]} 4... Bb4 {[%clk 0:02:51]} 5. Bd3 {[%clk 0:03:01.5]} 5...
c5 {[%clk 0:02:50.4]} 6. dxc5 {[%clk 0:03:02.4]} 6... Nc6 {[%clk 0:02:49.7]} 7.
Nf3 {[%clk 0:03:02.3]} 7... Qa5 {[%clk 0:02:47.5]} 8. O-O {[%clk 0:03:02.4]}
8... Bxc3 {[%clk 0:02:44.8]} 9. bxc3 {[%clk 0:03:03.3]} 9... Qxc5 {[%clk
0:02:44.8]} 10. Nd2 {[%clk 0:03:00.2]} 10... Qxc3 {[%clk 0:02:38]} 11. e4 {[%clk
0:02:59.3]} 11... O-O {[%clk 0:02:34.3]} 12. Rb1 {[%clk 0:02:58.7]} 12... e5
{[%clk 0:01:56]} 13. Bg5 {[%clk 0:02:41.3]} 13... Nxe4 {[%clk 0:01:53.6]} 14.
Nxe4 {[%clk 0:02:35.1]} 14... dxe4 {[%clk 0:01:54.5]} 15. Bxe4 {[%clk 0:02:36]}
15... h6 {[%clk 0:01:51.2]} 16. Be3 {[%clk 0:02:33.7]} 16... Qc4 {[%clk
0:01:41.7]} 17. Bd5 {[%clk 0:02:33]} 17... Qh4 {[%clk 0:01:40.9]} 18. Qf3 {[%clk
0:02:25.8]} 18... Bg4 {[%clk 0:01:25.9]} 19. Qe4 {[%clk 0:02:25.6]} 19... Qh5
{[%clk 0:01:12]} 20. Rxb7 {[%clk 0:02:24.9]} 20... Bf5 {[%clk 0:01:07.6]} 21.
Qa4 {[%clk 0:02:21.9]} 21... Nd4 {[%clk 0:00:59.7]} 22. Bxd4 {[%clk 0:02:14.7]}
22... exd4 {[%clk 0:01:00.6]} 23. Qxd4 {[%clk 0:01:56.8]} 23... Rad8 {[%clk
0:01:00.2]} 24. Rxf7 {[%clk 0:01:47]} 1-0

[Event "Late-Titled-Tuesday-Blitz-March-19-2024"]
[Site "Chess.com"]
[Date "2024.03.19"]
[Round "9"]
[White "Mikhail_Golubev"]
[Black "djano"]
[Result "1/2-1/2"]
[WhiteElo "2732"]
[BlackElo "2646"]
[TimeControl "180+1"]
[EndTime "15:41:01 PDT"]
[Termination "Game drawn by repetition"]

1. e4 {[%clk 0:03:00.9]} 1... c5 {[%clk 0:02:59.5]} 2. Nf3 {[%clk 0:03:00.9]}
2... Nc6 {[%clk 0:03:00]} 3. Nc3 {[%clk 0:03:00.7]} 3... Nd4 {[%clk 0:02:58.2]}
4. Nxd4 {[%clk 0:02:37.1]} 4... cxd4 {[%clk 0:02:58]} 5. Ne2 {[%clk 0:02:37.3]}
5... e5 {[%clk 0:02:56.7]} 6. c3 {[%clk 0:02:32.8]} 6... Bc5 {[%clk 0:02:41.8]}
7. cxd4 {[%clk 0:02:31.1]} 7... exd4 {[%clk 0:02:42.7]} 8. Ng3 {[%clk
0:02:22.2]} 8... d5 {[%clk 0:02:37.6]} 9. Bb5+ {[%clk 0:01:49.4]} 9... Bd7
{[%clk 0:02:37.9]} 10. Qa4 {[%clk 0:01:45.7]} 10... a6 {[%clk 0:02:27.1]} 11.
Bxd7+ {[%clk 0:01:44.4]} 11... Qxd7 {[%clk 0:02:28]} 12. Qxd7+ {[%clk
0:01:44.3]} 12... Kxd7 {[%clk 0:02:28.9]} 13. exd5 {[%clk 0:01:41.8]} 13... Nf6
{[%clk 0:02:28.9]} 14. d3 {[%clk 0:01:39.1]} 14... Rhe8+ {[%clk 0:02:27.3]} 15.
Kd1 {[%clk 0:01:39]} 15... Nxd5 {[%clk 0:02:24.7]} 16. a3 {[%clk 0:01:38.4]}
16... Re6 {[%clk 0:02:08.4]} 17. Bd2 {[%clk 0:01:34.3]} 17... g6 {[%clk
0:01:53.5]} 18. Rc1 {[%clk 0:01:33.7]} 18... Rc8 {[%clk 0:01:53.5]} 19. h4
{[%clk 0:01:22]} 19... h5 {[%clk 0:01:46.6]} 20. Ne4 {[%clk 0:01:20.6]} 20...
Be7 {[%clk 0:01:41.7]} 21. Rxc8 {[%clk 0:01:18.4]} 21... Kxc8 {[%clk 0:01:42.6]}
22. g3 {[%clk 0:01:13.4]} 22... Kd7 {[%clk 0:01:42]} 23. Re1 {[%clk 0:00:50.1]}
23... Rb6 {[%clk 0:01:40.4]} 24. Kc2 {[%clk 0:00:47.6]} 24... Rc6+ {[%clk
0:01:40.7]} 25. Kb1 {[%clk 0:00:44.6]} 25... Re6 {[%clk 0:01:39.1]} 26. Kc2
{[%clk 0:00:39.6]} 26... Rc6+ {[%clk 0:01:39]} 27. Kd1 {[%clk 0:00:38]} 27...
Rb6 {[%clk 0:01:37.8]} 28. Kc2 {[%clk 0:00:35.4]} 28... Rc6+ {[%clk 0:01:37.6]}
1/2-1/2